bitfinex/quotes_SOLUSD_20250417
["timestamp","ask_amount","ask_price","bid_price","bid_amount"]
[1744855044362,0.03,131.96,131.94,51.37567551]
[1744855044583,0.03,132.0,131.96,26.0]
[1744855044883,0.03,132.0,131.99,8.75929457]
[1744855045180,0.03,132.0,131.99,16.33562611]
[1744855047786,0.03,132.0,131.97,34.75929457]
[1744855048585,0.03,132.0,131.97,42.3366064]
[1744855048970,0.03,132.0,131.97,33.57731183]
[1744855049185,82.8,131.99,131.94,15.52]
[1744855049370,82.8,131.99,131.96,8.75929457]
[1744855050680,82.8,131.99,131.95,16.33780122]
[1744855051074,27.40894343,131.98,131.94,15.52]
[1744855051395,28.98244343,131.98,131.94,15.52]
[1744855051887,8.75929457,131.97,131.93,7.57941442]
[1744855052062,28.98244343,131.98,131.93,16.33870899]
[1744855053268,82.8,131.97,131.93,16.33870899]
[1744855056975,82.8,131.96,131.92,16.33960783]
[1744855057585,82.8,131.96,131.93,8.75929457]
[1744855060196,91.55929457,131.96,131.92,16.33960783]
[1744855060386,82.8,131.96,131.92,16.33960783]
[1744855072805,91.55929457,131.96,131.92,16.33960783]
[1744855074803,8.75929457,131.94,131.91,7.58082707]
[1744855075889,8.75929457,131.94,131.89,16.34137054]
[1744855078115,91.55929457,131.95,131.91,7.58092638]
[1744855081810,82.8,131.95,131.91,16.34022095]
[1744855082414,82.8,131.95,131.92,8.75929457]
[1744855083617,82.8,131.95,131.93,7.57977715]
[1744855090407,82.8,131.95,131.93,16.33907172]
[1744855091407,93.13279457,131.98,131.93,16.33907172]
[1744855092218,8.75929457,131.97,131.93,7.57977715]
[1744855092422,8.75929457,131.96,131.92,7.58017396]
[1744855094123,8.75929457,131.96,131.91,8.75929457]
[1744855094299,8.75929457,131.94,131.9,31.84040711]
[1744855094500,8.75929457,131.95,131.9,23.08111254]
[1744855094710,8.75929457,131.95,131.9,31.84040711]
[1744855095813,82.8,131.96,131.93,8.75929457]
[1744855096223,82.8,131.96,131.92,8.75929457]
[1744855096834,91.55929457,131.96,131.93,7.57977715]
[1744855097041,91.55929457,131.96,131.92,7.58011719]
[1744855098840,8.75929457,131.95,131.91,16.34005459]
[1744855099334,8.75929457,131.95,131.91,7.58076002]
[1744855100043,8.75929457,131.95,131.91,8.75929457]
[1744855100240,91.55929457,131.95,131.91,8.75929457]
[1744855101544,91.55929457,131.95,131.89,7.58207597]
[1744855101722,91.55929457,131.94,131.89,7.58207597]
[1744855102135,110.20894343,131.93,131.89,7.58207597]
[1744855106220,82.8,131.92,131.9,8.75929457]
[1744855106420,91.55929457,131.95,131.9,8.75929457]
[1744855106734,82.8,131.94,131.9,8.75929457]
[1744855107822,82.8,131.94,131.89,8.75929457]
[1744855107823,91.55929457,131.94,131.89,8.75929457]
[1744855108323,91.55929457,131.94,131.9,7.58150113]
[1744855111954,82.8,131.93,131.9,7.58150113]
[1744855112935,82.8,131.93,131.9,8.75929457]
[1744855113247,82.8,131.93,131.91,8.75929457]
[1744855114146,82.8,131.97,131.92,8.75929457]
[1744855114323,91.55929457,131.97,131.92,8.75929457]
[1744855115135,91.55929457,131.97,131.93,7.57977715]
[1744855115828,8.75929457,131.96,131.93,7.57977715]
[1744855117552,91.55929457,131.97,131.93,7.57977715]
[1744855128256,91.55929457,131.97,131.93,8.75929457]
[1744855129338,91.55929457,131.97,131.93,16.33862463]
[1744855129964,82.8,131.97,131.93,16.33862463]
[1744855131162,82.8,131.97,131.94,8.75929457]
[1744855131555,82.8,131.97,131.94,16.33846676]
[1744855132262,82.8,131.97,131.94,7.57917219]
[1744855133849,91.55929457,131.97,131.94,7.57917219]
[1744855134857,91.55929457,131.97,131.93,8.75929457]
[1744855135061,91.55929457,131.97,131.93,16.33886537]
[1744855136773,91.55929457,131.97,131.92,16.33940641]
[1744855136986,8.75929457,131.96,131.92,16.33940641]
[1744855137583,91.55929457,131.97,131.92,16.33940641]
[1744855138488,8.75929457,131.96,131.92,16.33940641]
[1744855141283,91.55929457,131.96,131.92,16.33940641]
[1744855142678,82.8,131.96,131.92,16.33940641]
[1744855144391,91.55929457,131.96,131.92,16.33940641]
[1744855144590,82.8,131.96,131.92,16.33940641]
[1744855150199,82.8,131.96,131.93,8.75929457]
[1744855150504,82.8,131.96,131.94,8.75929457]
[1744855151505,82.8,131.96,131.94,16.33830937]
[1744855153305,91.55929457,131.98,131.94,16.33830937]
[1744855153709,82.8,131.98,131.94,16.33830937]
[1744855158704,91.55929457,131.98,131.94,16.33830937]
[1744855166115,82.8,131.98,131.94,16.33830937]
[1744855166585,91.55929457,131.98,131.94,16.33830937]
[1744855167614,82.8,131.98,131.94,16.33830937]
[1744855172137,82.8,131.98,131.95,6.6564]
[1744855172424,0.03,132.0,131.97,8.75929457]
[1744855172618,0.03,132.0,131.99,16.95949457]
[1744855173413,0.03,132.0,131.99,51.99667285]
[1744855174133,0.03,132.01,131.99,59.57300439]
[1744855174425,0.03,132.02,132.01,26.0]
[1744855174426,1e-08,132.02,132.01,26.0]
[1744855174628,1e-08,132.02,132.01,34.75929457]
[1744855175307,1e-08,132.02,132.01,42.33447826]
[1744855181095,1e-08,132.02,132.01,42.76096297]
[1744855181733,0.03,132.03,132.01,42.76096297]
[1744855181913,0.03,132.03,132.02,8.75929457]
[1744855182629,0.03,132.03,132.02,16.33390447]
[1744855190937,0.03,132.03,132.02,7.5746099]
[1744855191110,0.03,132.03,132.02,16.33390447]
[1744855204345,0.03,132.03,132.02,8.75929457]
[1744855204537,0.03,132.03,132.02,16.33390447]
[1744855211827,0.03,132.03,131.99,6.6564]
[1744855212034,0.03,132.03,131.98,7.57690559]
[1744855212240,0.03,132.03,132.02,8.75929457]
[1744855212448,0.03,132.03,131.98,33.57690559]
[1744855212632,0.03,132.03,132.02,8.75929457]
[1744855213032,82.83,132.03,131.98,33.57690559]
[1744855213236,18.64964886,132.02,131.99,8.75929457]
[1744855213428,18.64964886,132.02,131.98,8.75929457]
[1744855214350,18.64964886,132.02,132.0,8.75929457]
[1744855214551,82.83,132.03,132.0,8.75929457]
[1744855214739,82.83,132.03,132.02,8.75929457]
[1744855215349,82.83,132.03,132.01,8.75929457]
[1744855217065,82.83,132.03,131.98,7.57690559]
[1744855217365,82.83,132.03,132.0,8.75929457]
[1744855219037,82.83,132.03,132.0,16.33482482]
[1744855219242,82.83,132.03,132.01,8.75929457]
[1744855219446,0.03,132.03,132.02,8.75929457]
[1744855219830,0.03,132.03,132.02,34.75929457]
[1744855221045,0.03,132.04,132.02,42.76038918]
[1744855221251,0.03,132.05,132.04,26.0]
[1744855221450,0.03,132.05,132.04,34.75929457]
[1744855223156,0.03,132.05,132.04,42.33275715]
[1744855224046,0.03,132.08,132.04,96.7300766]
[1744855224353,0.03,132.08,132.07,8.75929457]
[1744855226162,0.03,132.08,132.07,16.33103682]
[1744855226849,0.03,132.09,132.07,42.75752153]
[1744855227156,0.03,132.11,132.08,14.77399457]
[1744855227363,0.03,132.12,132.1,70.22295756]
[1744855227552,0.03,132.12,132.11,43.79647285]
[1744855227758,0.03,132.12,132.11,59.23647285]
[1744855228177,0.03,132.12,132.11,66.80592255]
[1744855231662,0.03,132.12,132.11,67.23240726]
[1744855232670,0.03,132.12,132.11,71.02240721]
[1744855233557,0.03,132.12,132.11,16.32874427]
[1744855233765,0.03,132.12,132.11,51.36592255]
[1744855236062,0.03,132.12,132.11,16.32874427]
[1744855236569,0.03,132.12,132.1,26.0]
[1744855236570,0.03,132.12,132.1,8.75929457]
[1744855236745,91.55929457,132.11,132.07,8.75929457]
[1744855237070,8.75929457,132.1,132.06,8.75929457]
[1744855237873,16.33046355,132.08,132.04,24.19929457]
[1744855238066,27.40894343,132.07,132.03,8.75929457]
[1744855238377,18.64964886,132.07,132.04,8.75929457]
[1744855239082,101.44964886,132.07,132.04,8.75929457]
[1744855239251,101.44964886,132.07,132.04,13.62204412]
[1744855240272,101.44964886,132.07,132.03,13.62204412]
[1744855241174,82.8,132.06,132.03,13.62204412]
[1744855241380,18.64964886,132.05,132.02,13.62204412]
[1744855242373,18.64964886,132.05,132.03,13.62204412]
[1744855243872,82.8,132.05,132.04,13.62204412]
[1744855244972,82.8,132.05,132.03,21.19595697]
[1744855246974,82.8,132.07,132.03,21.19595697]
[1744855247582,32.27169298,132.06,132.02,13.62204412]
[1744855247755,39.84402184,132.06,132.01,13.62204412]
[1744855251059,13.62204412,132.05,132.01,13.62204412]
[1744855251256,32.27169298,132.03,131.97,14.01777444]
[1744855251489,82.8,132.02,131.99,13.62204412]
[1744855252185,82.8,132.02,132.01,13.62204412]
[1744855252494,82.8,132.04,132.01,13.62204412]
[1744855252782,82.8,132.04,132.03,13.62204412]
[1744855253977,82.8,132.04,132.01,7.57517447]
[1744855254369,82.8,132.04,132.03,13.62204412]
[1744855254875,82.8,132.04,132.02,13.62204412]
[1744855255055,82.8,132.04,132.01,13.62204412]
[1744855255259,82.8,132.04,132.01,21.19712387]
[1744855255980,82.8,132.04,132.01,13.62204412]
[1744855256357,82.8,132.04,132.01,21.19713828]
[1744855257063,82.8,132.04,132.02,13.62204412]
[1744855257662,82.8,132.04,132.01,21.19713828]
[1744855260084,18.64964886,132.03,131.99,13.62204412]
[1744855260294,32.27169298,132.01,131.97,0.063]
[1744855260491,18.64964886,131.99,131.97,0.063]
[1744855260783,32.27169298,131.99,131.97,0.063]
[1744855261188,39.84804354,131.99,131.97,0.063]
[1744855263494,18.64964886,131.99,131.97,0.063]
[1744855263698,32.27169298,131.99,131.97,0.063]
[1744855264490,82.8,131.98,131.97,0.063]
[1744855264695,101.44964886,131.98,131.97,0.063]
[1744855265789,110.17833262,131.98,131.97,0.063]
[1744855266696,101.44964886,131.98,131.97,0.063]
[1744855266989,110.17833262,131.98,131.97,0.063]
[1744855267377,101.44964886,131.98,131.97,0.063]
[1744855268175,27.37833262,131.98,131.97,0.063]
[1744855268680,36.95592292,131.98,131.97,0.063]
[1744855271704,69.28492292,131.98,131.97,0.063]
[1744855276508,118.05687128,131.96,131.95,0.063]
[1744855277802,118.20780738,131.96,131.95,0.063]
[1744855279183,118.20780738,131.96,131.91,0.063]
[1744855279184,18.64964886,131.92,131.91,0.063]
[1744855279511,27.80481733,131.92,131.91,0.063]
[1744855280188,35.38516905,131.92,131.91,0.063]
[1744855281822,44.64964886,131.9,131.89,0.063]
[1744855281986,53.80481733,131.9,131.89,0.063]
[1744855282808,64.30695237,131.89,131.88,0.063]
[1744855283011,65.30695237,131.89,131.88,0.063]
[1744855283196,49.00435357,131.89,131.86,0.063]
[1744855283393,87.87695357,131.88,131.86,0.063]
[1744855283602,170.67695357,131.88,131.86,0.063]
[1744855284485,178.25960446,131.88,131.86,0.063]
[1744855285499,184.43100446,131.88,131.86,0.063]
[1744855285698,45.07613357,131.87,131.86,0.063]
[1744855286013,33.74654357,131.87,131.85,1e-08]
[1744855286312,141.54654357,131.86,131.85,1e-08]
[1744855286619,149.13034457,131.86,131.85,1e-08]
[1744855290917,66.33034457,131.86,131.85,1e-08]
[1744855293087,58.74654357,131.86,131.85,1e-08]
[1744855293288,26.09787223,131.91,131.85,13.67041001]
[1744855293289,13.67041,131.9,131.85,13.67041001]
[1744855293520,15.46,131.91,131.87,13.67041]
[1744855293689,0.1509361,131.96,131.9,13.67041]
[1744855293889,0.1509361,131.96,131.93,13.67041]
[1744855294109,32.89747967,131.96,131.92,13.67041]
[1744855294485,19.22706967,131.96,131.92,13.67041]
[1744855294695,18.64964886,131.94,131.9,21.2516349]
[1744855294895,13.67041,131.95,131.9,21.2516349]
[1744855295112,18.64964886,131.94,131.9,21.2516349]
[1744855295617,18.64964886,131.95,131.91,13.67041]
[1744855295789,18.64964886,131.95,131.91,21.2513146]
[1744855295994,0.1509361,131.96,131.92,13.67041]
[1744855296190,18.80058496,131.96,131.93,13.67041]
[1744855296388,18.80058496,131.96,131.92,13.67041]
[1744855297122,18.80058496,131.96,131.93,13.67041]
[1744855297301,82.8,131.95,131.93,13.67041]
[1744855297817,0.1561342,131.94,131.93,13.67041]
[1744855298021,0.1561342,131.94,131.92,21.25048212]
[1744855298617,0.1561342,131.94,131.93,19.87651]
[1744855301418,0.1561342,131.94,131.93,27.45628715]
[1744855301909,101.60578306,131.94,131.89,33.6889]
[1744855302111,101.60578306,131.94,131.9,13.67041]
[1744855302313,101.60578306,131.94,131.91,13.67041]
[1744855302805,101.60578306,131.94,131.9,13.67041]
[1744855303003,115.27619306,131.94,131.9,13.67041]
[1744855303325,101.60578306,131.94,131.9,21.25181]
[1744855303522,101.60578306,131.94,131.91,13.67041]
[1744855303825,82.9561342,131.94,131.92,13.67041]
[1744855304136,82.9561342,131.94,131.93,13.67041]
[1744855304501,82.9561342,131.94,131.92,13.67041]
[1744855305099,82.88029331,131.94,131.92,21.25045779]
[1744855305319,82.88029331,131.94,131.91,13.67041]
[1744855305621,82.88029331,131.94,131.9,13.67041]
[1744855305622,96.55070331,131.94,131.9,13.67041]
[1744855305798,82.88029331,131.94,131.91,13.67041]
[1744855306408,82.88029331,131.94,131.92,13.67041]
[1744855308628,82.88029331,131.94,131.92,21.25067068]
[1744855311229,82.88029331,131.94,131.91,13.67041]
[1744855312301,82.88029331,131.94,131.91,21.25120249]
[1744855313133,82.88029331,131.94,131.92,13.67041]
[1744855315234,82.88029331,131.94,131.92,21.25069195]
[1744855316726,82.88029331,131.94,131.91,13.67041]
[1744855316933,18.64964886,131.93,131.89,47.35931]
[1744855317122,18.64964886,131.91,131.88,13.67041]
[1744855317816,0.14845477,131.89,131.88,13.67041]
[1744855318229,0.14845477,131.89,131.88,21.25306089]
[1744855318921,0.14845477,131.89,131.88,34.92347089]
[1744855319719,0.14845477,131.89,131.88,21.25306089]
[1744855321210,0.14845477,131.89,131.88,34.92347089]
[1744855323352,0.16594584,131.9,131.89,7.967]
[1744855323518,0.16594584,131.9,131.89,21.63741]
[1744855323732,0.16594584,131.9,131.87,7.58302088]
[1744855324063,0.16594584,131.9,131.87,21.25343088]
[1744855324532,0.16594584,131.9,131.89,13.67041]
[1744855325049,0.16594584,131.9,131.89,21.25248597]
[1744855327159,0.1639868,131.92,131.9,8.023]
[1744855327322,0.15300946,131.93,131.92,39.67041]
[1744855328358,0.15300946,131.93,131.92,26.0]
[1744855328651,0.15300946,131.93,131.91,13.67041]
[1744855332450,0.15300946,131.93,131.91,21.2513255]
[1744855333759,0.15300946,131.93,131.92,13.67041]
[1744855333940,0.15300946,131.93,131.91,21.2513255]
[1744855334132,0.15300946,131.93,131.92,13.67041]
[1744855336135,0.15300946,131.93,131.92,21.25076172]
[1744855336631,0.15300946,131.93,131.92,47.25076172]
[1744855337850,0.30668674,131.93,131.92,47.25076172]
[1744855339139,0.15367728,131.93,131.92,47.25076172]
[1744855341366,0.15367728,131.93,131.9,6.4149]
[1744855341541,0.15367728,131.93,131.9,26.0]
[1744855341747,0.15367728,131.93,131.9,39.67041]
[1744855341948,0.15367728,131.93,131.9,13.67041]
[1744855343070,0.15367728,131.93,131.89,21.25248597]
[1744855343437,101.44964886,131.92,131.89,13.67041]
[1744855343644,32.32005886,131.9,131.86,0.063]
[1744855343848,32.32005886,131.88,131.86,0.063]
[1744855344068,32.32005886,131.87,131.86,0.063]
[1744855344566,48.18654357,131.87,131.86,0.063]
[1744855345145,55.76976947,131.87,131.86,0.063]
[1744855349780,48.18654357,131.87,131.86,0.063]
[1744855350074,55.76976947,131.87,131.86,0.063]
[1744855350782,48.18654357,131.87,131.86,0.063]
[1744855351682,47.76005886,131.87,131.86,0.063]
[1744855352371,18.64964886,131.87,131.86,0.063]
[1744855353178,18.64964886,131.88,131.86,0.063]
[1744855353556,18.64964886,131.89,131.86,21.31682452]
[1744855353785,15.44,131.9,131.88,13.67041]
[1744855354085,0.15367728,131.93,131.89,13.67041]
[1744855354273,0.15367728,131.93,131.92,13.67041]
[1744855355816,0.15367728,131.93,131.92,21.25076172]
[1744855357791,0.31007474,131.93,131.92,21.25076172]
[1744855359193,0.15639746,131.93,131.92,21.25076172]
[1744855359489,0.15390953,131.94,131.92,35.34765643]
[1744855359708,0.14823758,131.95,131.94,53.34082]
[1744855359914,0.14823758,131.95,131.94,60.92002266]
[1744855370026,0.14823758,131.95,131.93,7.57967017]
[1744855370320,0.14823758,131.95,131.94,13.67041]
[1744855371327,101.44964886,131.94,131.89,3.87404286]
[1744855371501,21.82376055,131.95,131.89,3.87404286]
[1744855371502,32.32005886,131.92,131.89,3.87404286]
[1744855371705,13.67041,131.91,131.89,3.87404286]
[1744855371890,82.8,131.91,131.89,3.87404286]
[1744855372092,82.8,131.91,131.88,13.67041]
[1744855374423,82.8,131.91,131.88,21.25301043]
[1744855375532,82.8,131.91,131.87,21.2534389]
[1744855375702,82.8,131.91,131.88,13.67041]
[1744855377003,82.8,131.91,131.87,7.5830289]
[1744855377216,82.8,131.91,131.87,21.2534389]
[1744855377629,82.8,131.91,131.88,13.67041]
[1744855377816,0.16612017,131.89,131.88,13.67041]
[1744855378832,0.16612017,131.89,131.88,21.25306089]
[1744855380327,0.16612017,131.89,131.87,21.25348741]
[1744855380713,0.16612017,131.89,131.88,21.25306089]
[1744855382126,0.16612017,131.89,131.86,47.3170544]
[1744855382720,0.16612017,131.89,131.86,21.3170544]
[1744855384315,18.64964886,131.88,131.86,0.063]
[1744855384839,32.32005886,131.88,131.86,0.063]
[1744855385022,18.64964886,131.88,131.86,0.063]
[1744855387736,101.44964886,131.88,131.86,0.063]
[1744855389034,115.54654357,131.87,131.86,0.063]
[1744855390611,58.74654357,131.87,131.86,0.063]
[1744855390810,66.32976947,131.87,131.86,0.063]
[1744855403143,61.40812891,131.87,131.86,0.063]
[1744855408353,101.81313357,131.86,131.85,1e-08]
[1744855408548,19.07613357,131.86,131.85,1e-08]
[1744855410245,35.40870401,131.86,131.85,1e-08]
[1744855411343,21.67693357,131.85,131.84,1e-08]
[1744855411540,19.07613357,131.83,131.82,0.063]
[1744855411851,43.28490301,131.83,131.82,0.063]
[1744855412445,50.87042982,131.83,131.82,0.063]
[1744855414147,85.86550758,131.83,131.82,0.063]
[1744855414849,85.91599158,131.83,131.82,0.063]
[1744855417145,85.91599158,131.83,131.8,0.063]
[1744855417146,101.75013357,131.81,131.8,0.063]
[1744855417336,110.49890301,131.81,131.8,0.063]
[1744855418629,144.0855808,131.81,131.8,0.063]
[1744855418836,44.64964886,131.78,131.77,0.063]
[1744855419139,69.28490301,131.78,131.77,0.063]
[1744855420643,76.87330792,131.78,131.77,1e-08]
[1744855420849,111.86838568,131.78,131.77,1e-08]
[1744855421349,76.87330792,131.78,131.77,1e-08]
[1744855421960,111.86838568,131.78,131.77,1e-08]
[1744855422256,76.87330792,131.78,131.77,1e-08]
[1744855422942,101.26064885,131.76,131.75,0.063]
[1744855423131,110.00941829,131.76,131.75,0.063]
[1744855424161,117.59897505,131.76,131.75,0.063]
[1744855426761,108.85020561,131.76,131.75,0.063]
[1744855426957,110.435903,131.76,131.75,0.063]
[1744855427171,101.26064885,131.76,131.75,0.063]
[1744855428977,82.61099999,131.76,131.75,0.063]
[1744855430063,101.68713356,131.76,131.75,0.063]
[1744855430266,35.41445977,131.76,131.75,0.063]
[1744855432368,0.42648471,131.73,131.72,0.063]
[1744855432869,27.3984183,131.74,131.72,0.063]
[1744855435166,18.64964886,131.74,131.72,0.063]
[1744855436281,33.58899996,131.77,131.72,8.81176944]
[1744855436463,101.44964886,131.76,131.72,8.81176944]
[1744855437383,101.44964886,131.76,131.73,8.74876944]
[1744855437587,82.8,131.76,131.74,8.74876944]
[1744855438264,82.8,131.76,131.75,8.74876944]
[1744855438558,98.26,131.78,131.76,1.6479]
[1744855438762,82.8,131.78,131.77,8.74876944]
[1744855438980,82.8,131.78,131.76,10.39666944]
[1744855439364,18.64964886,131.77,131.76,1.6479]
[1744855440989,18.64964886,131.77,131.73,14.05166809]
[1744855440990,18.64964886,131.77,131.74,16.33946169]
[1744855442759,82.8,131.78,131.76,8.74876944]
[1744855442960,82.8,131.78,131.77,8.74876944]
[1744855443166,15.46,131.82,131.77,13.67302394]
[1744855443475,15.46,131.82,131.79,13.67302394]
[1744855443680,15.46,131.82,131.76,39.67302394]
[1744855443681,18.64964886,131.81,131.77,13.67302394]
[1744855444365,32.3226728,131.81,131.77,13.67302394]
[1744855444767,39.90937761,131.81,131.77,13.67302394]
[1744855444968,32.3226728,131.81,131.77,13.67302394]
[1744855445264,18.64964886,131.79,131.76,39.67302394]
[1744855445488,18.64964886,131.79,131.76,13.67302394]
[1744855445973,18.64964886,131.79,131.75,13.67302394]
[1744855446170,32.3226728,131.79,131.74,21.26371578]
[1744855446393,18.64964886,131.79,131.76,13.67302394]
[1744855447885,18.64964886,131.79,131.76,21.26231289]
[1744855448080,82.8,131.8,131.77,13.67302394]
[1744855448881,18.64964886,131.79,131.76,39.67302394]
[1744855449267,82.8,131.78,131.76,47.2625199]
[1744855449483,82.8,131.78,131.77,13.67302394]
[1744855449781,82.8,131.78,131.76,39.67302394]
[1744855450386,82.8,131.78,131.76,13.67302394]
[1744855452773,82.8,131.78,131.75,21.26296567]
[1744855452973,82.8,131.78,131.75,13.67302394]
[1744855453174,82.8,131.78,131.74,39.67302394]
[1744855453374,82.8,131.78,131.75,13.67302394]
[1744855457998,82.8,131.78,131.76,13.67302394]
[1744855458175,82.8,131.78,131.77,13.67302394]
[1744855459083,82.8,131.78,131.75,7.58998545]
[1744855459289,82.8,131.78,131.77,13.67302394]
[1744855459490,82.8,131.78,131.74,33.59066948]
[1744855459673,18.64964886,131.77,131.74,26.0]
[1744855459879,18.64964886,131.77,131.74,13.67302394]
[1744855460978,101.44964886,131.77,131.74,13.67302394]
[1744855461597,82.8,131.77,131.76,13.67302394]
[1744855462699,82.8,131.81,131.76,27.34604788]
[1744855462904,82.8,131.81,131.79,13.67302394]
[1744855463207,82.8,131.81,131.79,8.75067512]
[1744855463572,82.8,131.81,131.79,16.33826616]
[1744855463777,82.8,131.81,131.79,8.75067512]
[1744855469608,82.8,131.81,131.78,8.75067512]
[1744855470393,82.8,131.81,131.77,42.33948683]
[1744855470908,82.8,131.81,131.78,8.75067512]
[1744855473912,82.8,131.81,131.77,42.33948683]
[1744855481223,82.8,131.81,131.78,8.75067512]
[1744855481395,0.050484,131.83,131.8,8.75067512]
[1744855481722,0.050484,131.83,131.81,8.75067512]
[1744855482719,0.050484,131.83,131.81,16.33720226]
[1744855485816,0.050484,131.83,131.81,8.75067512]
[1744855486021,8.75067512,131.82,131.77,26.0]
[1744855486223,27.40032398,131.81,131.77,26.0]
[1744855486599,27.40032398,131.81,131.77,33.58880901]
[1744855486806,82.8,131.8,131.76,8.75067512]
[1744855487118,91.55067512,131.8,131.76,8.75067512]
[1744855487630,82.8,131.8,131.76,8.75067512]
[1744855488532,82.8,131.8,131.76,16.34002855]
[1744855489622,82.8,131.8,131.77,8.75067512]
[1744855489822,82.8,131.8,131.78,8.75067512]
[1744855490335,82.8,131.82,131.79,8.75067512]
[1744855491641,18.64964886,131.81,131.78,8.75067512]
[1744855491846,18.64964886,131.81,131.77,16.33957337]
[1744855492144,18.64964886,131.81,131.77,8.75067512]
[1744855494249,18.64964886,131.81,131.78,8.75067512]
[1744855494617,82.8,131.82,131.8,8.75067512]
[1744855494822,82.8,131.82,131.79,8.75067512]
[1744855495146,18.64964886,131.81,131.77,16.33945067]
[1744855495357,18.64964886,131.81,131.77,8.75067512]
[1744855495720,18.64964886,131.81,131.77,16.33962177]
[1744855496252,101.44964886,131.81,131.77,16.33962177]
[1744855496929,101.44964886,131.81,131.78,8.75067512]
[1744855502857,101.44964886,131.81,131.77,7.58894665]
[1744855503165,101.44964886,131.81,131.78,8.75067512]
[1744855504048,101.44964886,131.81,131.78,16.33900705]
[1744855505658,101.44964886,131.81,131.79,8.75067512]
[1744855505659,82.8,131.81,131.79,8.75067512]
[1744855505838,82.8,131.81,131.8,8.75067512]
[1744855506953,0.050484,131.83,131.8,16.33792853]
[1744855507144,0.050484,131.83,131.82,8.75067512]
[1744855508663,0.050484,131.83,131.82,16.33677738]
[1744855508947,0.050484,131.83,131.82,77.33947786]
[1744855509339,0.03,131.87,131.85,26.0]
[1744855509672,0.03,131.87,131.86,8.75067512]
[1744855509871,0.03,131.87,131.85,34.75067512]
[1744855510075,0.03,131.87,131.85,8.75067512]
[1744855510377,82.83,131.87,131.84,8.75067512]
[1744855510560,82.83,131.87,131.84,16.33552144]
[1744855510872,82.83,131.87,131.85,8.75067512]
[1744855511550,82.83,131.87,131.84,8.75067512]
[1744855512353,82.83,131.87,131.85,8.75067512]
[1744855512772,82.83,131.87,131.86,8.75067512]
[1744855513863,0.03,131.87,131.86,8.75067512]
[1744855515176,0.03,131.87,131.86,13.65440596]
[1744855516283,0.03,131.87,131.86,21.23820696]
[1744855525355,0.03,131.87,131.85,26.0]
[1744855525561,0.03,131.87,131.83,13.65440596]
[1744855525969,0.03,131.87,131.84,13.65440596]
[1744855526684,0.03,131.87,131.85,13.65440596]
[1744855527580,0.03,131.87,131.86,13.65440596]
[1744855529066,0.03,131.87,131.85,21.23831969]
[1744855529895,0.03,131.87,131.86,13.65440596]
[1744855530294,0.03,131.87,131.85,21.23831969]
[1744855532095,0.03,131.87,131.85,13.65440596]
[1744855533684,0.03,131.87,131.86,13.65440596]
[1744855534597,0.03,131.87,131.85,13.65440596]
[1744855534785,18.67964886,131.87,131.83,13.65440596]
[1744855535176,18.67964886,131.87,131.83,8.7441931]
[1744855536184,18.67964886,131.87,131.84,8.7441931]
[1744855537390,18.67964886,131.87,131.84,16.32898316]
[1744855537568,0.03,131.87,131.84,16.32898316]
[1744855537774,0.03,131.87,131.85,8.7441931]
[1744855538801,0.03,131.87,131.84,16.32898316]
[1744855538975,0.03,131.87,131.84,8.7441931]
[1744855540076,18.67964886,131.87,131.83,8.7441931]
[1744855540276,101.47964886,131.87,131.83,8.7441931]
[1744855540597,101.47964886,131.87,131.84,8.7441931]
[1744855541595,101.47964886,131.87,131.84,16.32909877]
[1744855542098,101.47964886,131.87,131.83,16.32951547]
[1744855542403,101.47964886,131.87,131.84,8.7441931]
[1744855543702,101.47964886,131.87,131.84,16.32907687]
[1744855544993,82.83,131.87,131.83,7.58552681]
[1744855545202,82.83,131.87,131.84,8.7441931]
[1744855547792,82.83,131.87,131.85,8.7441931]
[1744855548005,82.83,131.87,131.83,7.58552681]
[1744855548198,82.83,131.87,131.85,8.7441931]
[1744855549988,82.83,131.87,131.85,16.32843833]
[1744855550205,82.83,131.87,131.84,8.7441931]
[1744855551408,82.83,131.87,131.82,33.58592079]